bitfinex-derivatives/quotes_BTCF0:USTF0_20250922
["timestamp","ask_amount","ask_price","bid_price","bid_amount"]
[1758504993377,0.01283,114780.0,114770.0,1.11405127]
[1758504993579,0.0810589,114780.0,114770.0,1.11405127]
[1758504993773,0.01283,114780.0,114770.0,1.11405127]
[1758504994170,0.01283,114780.0,114770.0,1.11505127]
[1758504994373,0.01283,114780.0,114770.0,1.11465127]
[1758504994579,0.01283,114780.0,114770.0,1.11505127]
[1758504994973,0.03446,114780.0,114770.0,0.8116]
[1758504995171,0.39526,114780.0,114770.0,0.8116]
[1758504995377,0.61164897,114780.0,114770.0,0.001]
[1758504995574,0.39526,114780.0,114770.0,0.001]
[1758504995972,0.86164897,114780.0,114770.0,0.0014]
[1758504996371,0.86164897,114780.0,114770.0,0.001]
[1758504996680,0.64526,114780.0,114770.0,0.0014]
[1758504996878,0.86164897,114780.0,114770.0,0.0014]
[1758504997783,0.93143106,114780.0,114770.0,0.0014]
[1758504998879,0.95402111,114780.0,114770.0,0.001]
[1758504999078,0.93143106,114780.0,114770.0,0.0014]
[1758504999278,0.68143106,114780.0,114770.0,0.0014]
[1758504999480,0.70401431,114780.0,114770.0,0.0014]
[1758505000180,0.68143106,114780.0,114770.0,0.0014]
[1758505000382,0.70400681,114780.0,114770.0,0.001]
[1758505000585,1.98039578,114780.0,114770.0,0.0014]
[1758505000776,2.48579578,114780.0,114770.0,0.0014]
[1758505000977,0.03446,114750.0,114740.0,0.51037437]
[1758505001171,0.03446,114750.0,114740.0,0.2938854]
[1758505001582,0.03446,114750.0,114740.0,0.51027437]
[1758505002086,0.03446,114750.0,114740.0,0.51067437]
[1758505002384,0.03446,114750.0,114740.0,0.52127437]
[1758505002580,0.04284429,114750.0,114740.0,0.52327437]
[1758505002787,0.04284429,114750.0,114740.0,0.88407437]
[1758505002983,0.04284429,114750.0,114740.0,0.88607423]
[1758505003489,0.04284429,114750.0,114740.0,0.88407423]
[1758505003683,0.04284429,114750.0,114740.0,0.87407423]
[1758505003884,0.04284429,114750.0,114740.0,0.66168526]
[1758505004079,0.04284429,114750.0,114740.0,0.87807423]
[1758505005486,0.04284429,114750.0,114740.0,0.87707423]
[1758505005987,0.04284429,114750.0,114740.0,0.51627423]
[1758505006693,0.04284429,114750.0,114740.0,0.73300548]
[1758505011198,0.04284429,114750.0,114740.0,0.29988526]
[1758505011394,0.04284429,114750.0,114740.0,0.73300548]
[1758505011595,0.18744429,114750.0,114740.0,0.73300548]
[1758505011898,0.04284429,114750.0,114740.0,0.73300548]
[1758505013095,0.04284429,114750.0,114740.0,0.29988526]
[1758505013296,0.04284429,114750.0,114740.0,0.73300548]
[1758505018299,0.2594044,114750.0,114740.0,0.00599986]
[1758505018510,0.89277763,114750.0,114740.0,0.00599986]
[1758505018807,0.89277763,114750.0,114740.0,0.30965007]
[1758505019000,0.89277763,114750.0,114740.0,0.31005007]
[1758505019205,0.89277763,114750.0,114740.0,0.52661018]
[1758505019503,0.89277763,114750.0,114740.0,0.31005007]
[1758505019897,0.89377763,114750.0,114740.0,0.08948996]
[1758505020097,0.89377763,114750.0,114740.0,0.30605007]
[1758505020702,0.67721752,114750.0,114740.0,0.52261018]
[1758505020905,0.64277763,114750.0,114740.0,0.30605007]
[1758505021205,0.64277763,114750.0,114740.0,0.30705007]
[1758505023304,0.85933774,114750.0,114740.0,0.00339986]
[1758505023504,1.91877774,114750.0,114740.0,0.00299986]
[1758505023800,2.06337774,114750.0,114740.0,0.00245574]
[1758505024002,2.06337774,114750.0,114740.0,0.00205574]
[1758505024204,2.06337774,114750.0,114740.0,0.00245574]
[1758505024404,1.25393774,114750.0,114740.0,0.00205574]
[1758505024604,2.06337774,114750.0,114740.0,0.00245574]
[1758505025006,1.03737763,114750.0,114740.0,0.00245574]
[1758505025200,2.06337774,114750.0,114740.0,0.00245574]
[1758505025601,1.84681763,114750.0,114740.0,0.00245574]
[1758505026008,0.78737763,114750.0,114740.0,0.00245574]
[1758505026309,1.59677763,114750.0,114740.0,0.00245574]
[1758505031514,1.81333774,114750.0,114740.0,0.00245574]
[1758505033404,1.84441659,114750.0,114740.0,0.00245574]
[1758505036214,0.03597,114740.0,114730.0,0.0001]
[1758505036412,0.03597,114730.0,114720.0,0.30456481]
[1758505036616,0.63590334,114730.0,114720.0,0.21736011]
[1758505037122,0.70460792,114730.0,114720.0,0.21736011]
[1758505038001,0.48804781,114730.0,114720.0,0.21736011]
[1758505038406,0.70460792,114730.0,114720.0,0.21736011]
[1758505039207,0.12724781,114730.0,114720.0,0.52802582]
[1758505040011,0.12724781,114730.0,114720.0,0.52102582]
[1758505043222,0.10467458,114730.0,114720.0,0.52102582]
[1758505043614,0.70213828,114730.0,114720.0,0.21736011]
[1758505043815,0.72483254,114730.0,114720.0,0.21736011]
[1758505044015,0.70213828,114730.0,114720.0,0.0008]
[1758505044215,0.70213828,114730.0,114720.0,0.21736011]
[1758505045422,0.72484138,114730.0,114720.0,0.21736011]
[1758505045618,0.72484138,114730.0,114720.0,0.30446571]
[1758505045823,0.34133828,114730.0,114720.0,0.30446571]
[1758505046023,0.72484137,114730.0,114720.0,0.30446571]
[1758505046725,0.34133828,114730.0,114720.0,0.52102582]
[1758505047223,0.36405669,114730.0,114720.0,0.52102582]
[1758505047624,0.72485669,114730.0,114720.0,0.52102582]
[1758505049029,0.50829658,114730.0,114720.0,0.52102582]
[1758505049325,0.72485669,114730.0,114720.0,0.52102582]
[1758505049721,0.12739299,114730.0,114720.0,0.77102582]
[1758505049920,0.10467458,114730.0,114720.0,1.13182582]
[1758505050220,0.10467458,114730.0,114720.0,1.94066582]
[1758505053026,0.10467458,114730.0,114720.0,1.1466656]
[1758505053329,0.34388191,114730.0,114720.0,0.77102582]
[1758505054228,0.70468191,114730.0,114720.0,0.55446571]
[1758505055532,0.70468191,114730.0,114720.0,0.46736011]
[1758505055730,0.92124202,114730.0,114720.0,0.0008]
[1758505056028,0.03654,114720.0,114710.0,0.0001]
[1758505056227,0.01372,114710.0,114700.0,1.47405741]
[1758505056427,0.23028011,114710.0,114700.0,1.47395741]
[1758505056932,0.01372,114710.0,114700.0,1.69051752]
[1758505057124,0.01372,114710.0,114700.0,1.69047752]
[1758505058428,0.01372,114710.0,114700.0,1.94847752]
[1758505058622,0.03654,114720.0,114710.0,0.0871129]
[1758505058823,0.03654,114720.0,114710.0,0.66447301]
[1758505059023,0.03654,114720.0,114710.0,0.30367301]
[1758505060427,0.03654,114720.0,114710.0,0.0871129]
[1758505060635,0.03654,114720.0,114710.0,0.30367301]
[1758505061731,0.03654,114720.0,114710.0,1.11223301]
[1758505062030,0.03654,114720.0,114710.0,0.30367301]
[1758505062338,0.03654,114720.0,114710.0,1.11223301]
[1758505063226,0.05917923,114720.0,114710.0,1.11223301]
[1758505067330,0.05917923,114720.0,114710.0,0.8956729]
[1758505067524,0.05917923,114720.0,114710.0,1.11223301]
[1758505068624,0.05917923,114720.0,114710.0,1.4731557]
[1758505070230,0.05917923,114720.0,114710.0,1.1123557]
[1758505070433,0.05917923,114720.0,114710.0,1.4731557]
[1758505071833,0.05917923,114720.0,114710.0,0.6645957]
[1758505072130,0.05917923,114720.0,114710.0,1.4729157]
[1758505073233,0.03654,114720.0,114710.0,1.4729157]
[1758505074924,0.03654,114720.0,114710.0,0.6645957]
[1758505075126,0.03654,114720.0,114710.0,1.4728757]
[1758505076230,0.03654,114720.0,114710.0,1.2561929]
[1758505076441,0.03654,114720.0,114710.0,1.4728757]
[1758505080240,0.03654,114720.0,114710.0,0.6645957]
[1758505080429,0.03654,114720.0,114710.0,1.1119157]
[1758505080738,0.03654,114720.0,114710.0,1.1159157]
[1758505081438,0.03654,114720.0,114710.0,0.8992329]
[1758505081643,0.03654,114720.0,114710.0,1.1159157]
[1758505082036,0.44281458,114730.0,114710.0,1.4767157]
[1758505082338,0.126708,114730.0,114720.0,0.8812708]
[1758505082541,0.126708,114730.0,114720.0,0.664588]
[1758505082939,0.126708,114730.0,114720.0,1.472628]
[1758505084137,0.126708,114730.0,114720.0,0.664588]
[1758505084535,0.487508,114730.0,114720.0,1.111788]
[1758505084847,0.126708,114730.0,114720.0,1.111788]
[1758505085031,0.126708,114730.0,114720.0,1.115788]
[1758505088644,0.126708,114730.0,114720.0,1.476588]
[1758505088944,0.41615981,114740.0,114730.0,0.0870976]
[1758505089246,0.43889305,114740.0,114730.0,0.3037804]
[1758505090440,0.07809305,114740.0,114730.0,0.3037804]
[1758505090742,0.05535981,114740.0,114730.0,0.3037804]
[1758505091834,0.1237241,114740.0,114730.0,0.3037804]
[1758505093035,0.4845241,114740.0,114730.0,1.1115004]
[1758505093243,0.1237241,114740.0,114730.0,1.1115004]
[1758505094645,0.1237241,114740.0,114730.0,1.4723004]
[1758505096046,0.1016741,114740.0,114730.0,1.4723004]
[1758505096240,0.1016741,114740.0,114730.0,1.4763004]
[1758505096446,0.01999981,114740.0,114730.0,1.7263004]
[1758505098149,0.02210429,114750.0,114740.0,0.08709]
[1758505098350,0.00838429,114750.0,114740.0,0.6645728]
[1758505098642,0.39554,114760.0,114750.0,0.0870824]
[1758505098848,0.39554,114760.0,114750.0,1.1112852]
[1758505099042,0.37435,114760.0,114750.0,1.1112852]
[1758505099253,0.01355,114760.0,114750.0,1.688768]
[1758505099546,0.01355,114760.0,114750.0,1.4720452]
[1758505099854,0.03474,114760.0,114750.0,1.4720452]
[1758505100055,0.04304636,114760.0,114750.0,1.4720452]
[1758505100662,0.04504636,114760.0,114750.0,1.4720452]
[1758505100958,0.04504636,114760.0,114750.0,0.6645652]
[1758505101159,0.04504636,114760.0,114750.0,0.0870824]
[1758505101457,0.04504636,114760.0,114750.0,1.1111652]
[1758505102259,0.01356,114750.0,114730.0,0.5775828]
[1758505102445,0.03475,114740.0,114730.0,0.3038741]
[1758505102648,0.03475,114740.0,114730.0,1.1111341]
[1758505103853,0.03475,114740.0,114730.0,1.1154941]
[1758505104450,0.03475,114740.0,114730.0,0.3081741]
[1758505104657,0.03475,114740.0,114730.0,1.1154941]
[1758505106061,0.03475,114740.0,114730.0,0.3081741]
[1758505106461,0.03475,114740.0,114730.0,1.1154141]
[1758505106767,0.03475,114740.0,114730.0,0.8987313]
[1758505107061,0.05742436,114740.0,114730.0,0.8987313]
[1758505108654,0.05742436,114740.0,114730.0,0.0044]
[1758505108855,0.05742436,114740.0,114730.0,0.8116]
[1758505109263,0.05742436,114740.0,114730.0,0.8986975]
[1758505109466,0.05742436,114740.0,114730.0,1.1153803]
[1758505109768,0.05742436,114740.0,114730.0,1.1113803]
[1758505110063,0.05742436,114740.0,114730.0,1.1153803]
[1758505110364,0.05742436,114740.0,114730.0,1.1113803]
[1758505113361,0.03475,114740.0,114730.0,1.1113803]
[1758505113862,0.03475,114740.0,114730.0,1.1112603]
[1758505116162,0.03475,114740.0,114730.0,0.0874975]
[1758505116367,0.03475,114740.0,114730.0,1.1111803]
[1758505118770,0.03475,114740.0,114730.0,0.3041803]
[1758505118969,0.03475,114740.0,114730.0,1.1111403]
[1758505120170,0.03475,114740.0,114730.0,0.3041803]
[1758505120471,0.8622328,114740.0,114730.0,0.0004]
[1758505120668,0.88489534,114740.0,114730.0,0.0004]
[1758505120869,0.01325,114730.0,114720.0,1.2548795]
[1758505121067,0.01325,114730.0,114720.0,1.2555795]
[1758505121257,0.01325,114730.0,114720.0,1.4722623]
[1758505122167,0.01325,114730.0,114720.0,1.1114623]
[1758505122468,0.01325,114730.0,114720.0,1.1154623]
[1758505122869,0.03465,114730.0,114720.0,0.8979795]
[1758505123266,0.03465,114730.0,114720.0,0.8983795]
[1758505123773,0.03465,114730.0,114720.0,1.1150623]
[1758505124072,0.1050338,114730.0,114720.0,1.1150623]
[1758505124272,0.03465,114730.0,114720.0,1.1150623]
[1758505125678,0.01356,114740.0,114730.0,0.0870975]
[1758505125974,0.01356,114740.0,114730.0,0.6645803]
[1758505126376,0.03496,114740.0,114730.0,0.6645803]
[1758505127774,0.01356,114740.0,114730.0,0.6645803]
[1758505127979,0.03496,114750.0,114740.0,0.08709]
[1758505128180,0.01356,114750.0,114740.0,1.4712928]
[1758505128480,0.06360931,114760.0,114750.0,0.0870824]
[1758505128673,0.06360931,114760.0,114750.0,0.3037652]
[1758505129482,0.04220931,114760.0,114750.0,0.3037652]
[1758505129779,0.04420931,114760.0,114750.0,0.6645652]
[1758505129969,0.06560931,114760.0,114750.0,0.6645652]
[1758505130670,0.06560931,114760.0,114750.0,0.66439406]
[1758505131075,0.04420931,114760.0,114750.0,0.66439406]
[1758505131281,0.06560931,114760.0,114750.0,0.66439406]
[1758505132586,0.02385636,114760.0,114750.0,0.88090572]
[1758505132976,0.02385636,114760.0,114750.0,0.66439406]
[1758505133285,0.02355636,114760.0,114750.0,0.66439406]
[1758505133786,0.26146802,114760.0,114750.0,1.47099406]
[1758505134083,0.04495636,114760.0,114750.0,1.47099406]
[1758505134382,0.26146802,114760.0,114750.0,1.47099406]
[1758505134780,0.04495636,114760.0,114750.0,1.47099406]
[1758505140989,0.01030636,114760.0,114750.0,1.47099406]
[1758505141395,0.02382636,114760.0,114750.0,1.47099406]
[1758505141889,0.04710636,114760.0,114750.0,1.47071406]
[1758505142088,0.04710636,114760.0,114750.0,0.66439406]
[1758505142288,0.04710636,114760.0,114750.0,1.47071406]
[1758505142685,0.04710636,114760.0,114750.0,1.47067406]
[1758505143694,0.04710636,114760.0,114750.0,0.66439406]
[1758505143887,0.04710636,114760.0,114750.0,1.47067406]
[1758505144786,0.04710636,114760.0,114750.0,0.66439406]
[1758505144986,0.04710636,114760.0,114750.0,1.47063406]
[1758505147290,0.04710636,114760.0,114750.0,0.66439406]
[1758505147492,0.04710636,114760.0,114750.0,1.47055406]
[1758505147792,0.01030636,114760.0,114750.0,1.47055406]
[1758505148393,0.02382636,114760.0,114750.0,1.47055406]
[1758505149897,0.02382636,114760.0,114750.0,1.47047406]
[1758505151793,0.04710636,114760.0,114750.0,1.47047406]
[1758505152297,0.02382636,114760.0,114750.0,1.47047406]
[1758505152695,0.02382636,114760.0,114750.0,1.68698572]
[1758505153398,0.0464529,114760.0,114750.0,1.68698572]
[1758505153593,0.0684129,114760.0,114750.0,0.4478824]
[1758505153792,0.0684129,114760.0,114750.0,1.68690572]
[1758505154702,0.0684129,114760.0,114750.0,1.47039406]
[1758505155196,0.0464529,114760.0,114750.0,1.47039406]
[1758505157699,0.0464529,114760.0,114750.0,1.68690572]
[1758505157995,0.02462654,114760.0,114750.0,1.68690572]
[1758505158802,0.02462654,114760.0,114750.0,0.88090572]
[1758505159002,0.03834654,114760.0,114750.0,1.47019406]
[1758505160194,0.03834654,114760.0,114750.0,1.68670572]
[1758505161201,0.04671276,114760.0,114750.0,1.68670572]
[1758505163005,0.04671276,114760.0,114750.0,0.88090572]
[1758505163197,0.04671276,114760.0,114750.0,1.68658572]
[1758505163398,0.02408622,114760.0,114750.0,1.68658572]
[1758505166399,0.02208622,114760.0,114750.0,1.69058572]
[1758505166707,0.04476622,114760.0,114750.0,0.4518824]
[1758505166906,0.04476622,114760.0,114750.0,0.66839406]
[1758505167106,0.04476622,114760.0,114750.0,1.47395406]
[1758505168096,0.72778954,114760.0,114750.0,0.3648]
[1758505168300,1.11116694,114760.0,114750.0,0.004]
[1758505168710,1.14224579,114760.0,114750.0,0.004]
[1758505169103,1.11116694,114760.0,114750.0,0.004]
[1758505169304,1.14224579,114760.0,114750.0,0.004]
[1758505170109,1.11116694,114760.0,114750.0,0.004]
[1758505170606,1.14224579,114760.0,114750.0,0.004]
[1758505171503,1.28694579,114760.0,114750.0,0.004]
[1758505172111,1.25586694,114760.0,114750.0,0.004]
[1758505173210,0.82284362,114760.0,114750.0,0.004]
[1758505173407,0.42814362,114760.0,114750.0,0.30759626]
[1758505174495,0.04476622,114760.0,114750.0,0.30759626]
[1758505174706,0.06800628,114760.0,114750.0,0.30759626]
[1758505174909,0.06800628,114760.0,114750.0,1.11303626]
[1758505177002,0.02208622,114760.0,114750.0,1.94034792]
[1758505177796,0.02208622,114760.0,114750.0,1.72383626]
[1758505178108,0.02208622,114760.0,114750.0,1.94034792]
[1758505179309,0.02208622,114760.0,114750.0,1.69034792]
[1758505179506,0.0840228,114780.0,114770.0,0.0870694]
[1758505179714,0.11576298,114780.0,114770.0,1.32541272]
[1758505180014,0.00860465,114780.0,114770.0,1.93621272]
[1758505180202,0.0004,114780.0,114770.0,1.93621272]
[1758505181099,0.08483572,114790.0,114780.0,0.0870618]
[1758505181301,0.00915781,114790.0,114780.0,0.88088512]
[1758505181503,0.00835781,114790.0,114780.0,0.88088512]
[1758505181709,0.0004,114790.0,114780.0,0.88088512]
[1758505182112,0.01426,114790.0,114780.0,0.88088512]
[1758505182513,0.01626,114790.0,114780.0,0.88088512]
[1758505183411,0.01426,114790.0,114780.0,0.4518618]
[1758505183716,0.01426,114790.0,114780.0,1.69004512]
[1758505184421,0.01426,114790.0,114780.0,0.88488512]
[1758505184717,0.01426,114790.0,114780.0,1.69000512]
[1758505185018,0.39774,114790.0,114780.0,1.11269346]
[1758505185217,0.03694,114790.0,114780.0,1.11269346]
[1758505185415,0.26199037,114790.0,114780.0,0.30757346]
[1758505185607,0.26199037,114790.0,114780.0,0.0910618]
[1758505185811,0.26199037,114790.0,114780.0,1.11265346]
[1758505186126,0.04547871,114790.0,114780.0,1.11265346]
[1758505186311,0.26199037,114790.0,114780.0,1.11265346]
[1758505187517,0.04547871,114790.0,114780.0,1.11265346]
[1758505187816,0.26199037,114790.0,114780.0,1.11265346]
[1758505188113,0.26199037,114790.0,114780.0,0.30757346]
[1758505188311,0.04547871,114790.0,114780.0,1.11257346]
[1758505188506,0.26199037,114790.0,114780.0,0.30757346]
[1758505188713,0.26199037,114790.0,114780.0,1.11257346]
[1758505188912,0.62279037,114790.0,114780.0,1.11257346]
[1758505189511,0.62279037,114790.0,114780.0,0.30757346]
[1758505189711,0.62279037,114790.0,114780.0,1.11253346]
[1758505189917,0.62279037,114790.0,114780.0,1.32904512]
[1758505190114,0.40627871,114790.0,114780.0,1.32904512]
[1758505190514,0.40627871,114790.0,114780.0,1.11253346]
[1758505190720,0.40627871,114790.0,114780.0,1.11245991]
[1758505190918,0.04547871,114790.0,114780.0,1.11245991]
[1758505191119,0.04547871,114790.0,114780.0,1.47325991]
[1758505192014,0.19017871,114790.0,114780.0,1.47325991]
[1758505192323,0.04547871,114790.0,114780.0,1.47325991]
[1758505193322,0.06864804,114790.0,114780.0,1.47325991]
[1758505194318,0.04596804,114790.0,114780.0,1.68969802]
[1758505194520,0.04556804,114790.0,114780.0,1.68969802]
[1758505195017,0.04596804,114790.0,114780.0,1.68969802]
[1758505196225,0.04596804,114790.0,114780.0,1.47325991]
[1758505198119,0.06810804,114790.0,114780.0,0.8957818]
[1758505198318,0.06810804,114790.0,114780.0,0.30749991]
[1758505198513,0.06810804,114790.0,114780.0,1.11221991]
[1758505200925,0.06810804,114790.0,114780.0,1.11217991]
[1758505201315,0.06810804,114790.0,114780.0,0.30749991]
[1758505201522,0.06810804,114790.0,114780.0,1.11217991]
[1758505201718,0.06810804,114790.0,114780.0,1.11213991]
[1758505202924,0.42890804,114790.0,114780.0,1.11213991]
[1758505203116,0.06810804,114790.0,114780.0,1.11209991]
[1758505203317,0.04493871,114790.0,114780.0,1.11209991]
[1758505203916,0.04493871,114790.0,114780.0,0.30749991]
[1758505204124,0.06813427,114790.0,114780.0,1.11209991]
[1758505205024,0.87217682,114790.0,114780.0,0.004]
[1758505205228,1.04008208,114790.0,114780.0,0.004]
[1758505206427,0.82364397,114790.0,114780.0,0.0910618]
[1758505206630,1.04008208,114790.0,114780.0,0.0910618]
[1758505208130,1.07116093,114790.0,114780.0,0.0910618]
[1758505210730,1.07116093,114790.0,114780.0,0.004]
[1758505212524,1.28759904,114790.0,114780.0,0.004]
[1758505212729,0.05530667,114770.0,114760.0,0.0870761]
[1758505212930,0.65575004,114770.0,114760.0,0.0870761]
[1758505213126,0.43931193,114770.0,114760.0,0.0870761]
[1758505214030,0.43931193,114770.0,114760.0,0.0880761]
[1758505214626,0.43931193,114770.0,114760.0,0.0870761]
[1758505215026,0.43931193,114770.0,114760.0,0.0940761]
[1758505215630,0.03537,114760.0,114750.0,0.0870804]
[1758505215831,0.61260811,114760.0,114750.0,0.0870804]
[1758505216147,0.39617,114760.0,114750.0,0.0870804]
[1758505217837,0.39617,114760.0,114750.0,0.0880804]
[1758505218837,0.4667793,114760.0,114750.0,0.0880804]
[1758505219527,0.4667793,114760.0,114750.0,0.0870804]
[1758505219732,0.4667793,114760.0,114750.0,0.0880804]
[1758505220136,0.70640957,114760.0,114750.0,0.001]
[1758505221334,0.68621741,114760.0,114750.0,0.0870844]
[1758505221939,0.4697793,114760.0,114750.0,0.0870844]
[1758505224441,0.01274,114750.0,114740.0,1.10828551]
[1758505226036,0.01274,114750.0,114740.0,1.10928551]
[1758505236649,0.4451793,114760.0,114750.0,0.0870844]
[1758505236650,0.1067293,114760.0,114750.0,0.0870844]
[1758505236856,0.1067293,114760.0,114750.0,0.51996062]
[1758505237453,0.0843793,114760.0,114750.0,0.51996062]
[1758505237853,0.0843793,114760.0,114750.0,0.88076062]
[1758505238052,0.0706093,114760.0,114750.0,1.13076062]
[1758505238358,0.05605667,114770.0,114760.0,0.0870768]
[1758505238556,0.05605667,114770.0,114760.0,1.46843491]
[1758505239650,0.05605667,114770.0,114760.0,1.46883491]
[1758505240060,0.03370667,114770.0,114760.0,1.46883491]
[1758505240851,0.03370667,114770.0,114760.0,1.47283491]
[1758505241051,0.03370667,114770.0,114760.0,1.2563968]
[1758505241251,0.03370667,114770.0,114760.0,1.47263491]
[1758505244653,0.01993667,114770.0,114760.0,1.47263491]
[1758505245259,0.01993667,114770.0,114760.0,1.72263491]
[1758505246857,0.01993667,114770.0,114760.0,0.91831491]
[1758505247056,0.01993667,114770.0,114760.0,1.72235491]
[1758505247558,0.05632845,114780.0,114770.0,0.0870692]
[1758505247760,0.07966994,114780.0,114770.0,1.46834731]
[1758505248266,0.07966994,114780.0,114770.0,0.66430731]
[1758505248455,0.07966994,114780.0,114770.0,1.46834731]
[1758505248655,0.08006994,114780.0,114770.0,1.46834731]
[1758505250266,0.02374149,114780.0,114770.0,1.68578542]
[1758505250567,0.04442871,114790.0,114780.0,0.0870616]
[1758505250765,0.04541223,114790.0,114780.0,0.88073782]
[1758505250962,0.04461223,114790.0,114780.0,1.68477782]
[1758505251266,0.03227223,114790.0,114780.0,1.93477782]
[1758505251462,0.00853871,114790.0,114780.0,1.93477782]
[1758505251668,0.0004,114790.0,114780.0,1.93477782]
[1758505251969,0.0034,114790.0,114780.0,1.93477782]
[1758505252567,0.0034,114790.0,114780.0,2.15094118]
[1758505253367,0.0004,114790.0,114780.0,2.15094118]
[1758505253674,0.00885525,114790.0,114780.0,1.35094118]
[1758505253974,0.0004,114790.0,114780.0,2.15494118]
[1758505254157,0.0004,114790.0,114780.0,1.35094118]
[1758505254462,0.0004,114790.0,114780.0,2.15490118]
[1758505255671,0.00907917,114790.0,114780.0,2.15490118]
[1758505256167,0.00907917,114790.0,114780.0,1.35094118]
[1758505256466,0.00907917,114790.0,114780.0,2.15486118]
[1758505259171,0.00907917,114790.0,114780.0,2.15482118]
[1758505260467,0.00907917,114790.0,114780.0,1.35094118]
[1758505260667,0.00907917,114790.0,114780.0,2.15482118]
[1758505260971,0.00907917,114790.0,114780.0,1.35094118]
[1758505261176,0.0008,114800.0,114790.0,0.0870545]
[1758505261371,0.01284,114810.0,114800.0,0.0870469]
[1758505261372,0.01274,114810.0,114800.0,0.0870469]
[1758505261567,0.01274,114810.0,114800.0,1.68440662]
[1758505262063,0.08099285,114810.0,114800.0,1.68440662]
[1758505262259,0.02115398,114810.0,114800.0,1.68440662]
[1758505262970,0.00841398,114810.0,114800.0,1.90076648]
[1758505263175,0.01354,114820.0,114810.0,0.0870393]
[1758505263368,0.01354,114820.0,114810.0,0.88055902]
[1758505263566,0.01274,114820.0,114810.0,0.88055902]
[1758505263771,0.03492,114820.0,114810.0,0.88055902]
[1758505264570,0.03892,114820.0,114810.0,0.88055902]
[1758505264774,0.01714,114820.0,114810.0,0.88055902]
[1758505264975,0.03892,114820.0,114810.0,0.4478393]
[1758505265178,0.03892,114820.0,114810.0,0.88055902]
[1758505265372,0.03892,114820.0,114810.0,1.68431902]
[1758505265577,0.28892,114820.0,114810.0,1.46795916]
[1758505265780,0.35701388,114820.0,114810.0,1.46795916]
[1758505266081,0.36540307,114820.0,114810.0,1.46795916]
[1758505266579,0.36540307,114820.0,114810.0,1.10715916]
[1758505267279,0.36540307,114820.0,114810.0,1.10711916]
[1758505267480,0.96574278,114820.0,114810.0,1.10711916]
[1758505267676,0.74938292,114820.0,114810.0,0.8907593]
[1758505267872,0.74938292,114820.0,114810.0,1.10711916]
[1758505268380,0.74938292,114820.0,114810.0,0.30339916]
[1758505268583,0.74938292,114820.0,114810.0,0.8907193]
[1758505268882,0.74938292,114820.0,114810.0,1.10707916]
[1758505270078,0.74938292,114820.0,114810.0,0.8907193]
[1758505270283,0.74938292,114820.0,114810.0,1.10707916]
[1758505270580,0.96574278,114820.0,114810.0,1.10707916]
[1758505270880,0.74938292,114820.0,114810.0,1.10707916]
[1758505271880,0.98576499,114820.0,114810.0,0.80364]
[1758505272083,0.03429,114810.0,114800.0,0.30340186]
[1758505272283,0.63462971,114810.0,114800.0,1.10700186]
[1758505272477,0.88462971,114810.0,114800.0,1.10700186]
[1758505273388,0.67126985,114810.0,114800.0,1.32336172]
[1758505273583,0.31046985,114810.0,114800.0,1.68416172]
[1758505273780,0.06046985,114810.0,114800.0,1.68416172]
[1758505274078,0.03960985,114810.0,114800.0,1.68416172]
[1758505274283,0.02657985,114810.0,114800.0,1.90052158]
[1758505274476,0.003,114810.0,114800.0,1.90052158]
[1758505274768,0.0034,114810.0,114800.0,1.90052158]
[1758505274972,0.003,114810.0,114800.0,1.90052158]
[1758505275176,0.02082221,114820.0,114810.0,0.0870394]
[1758505275390,0.04401517,114820.0,114810.0,1.09691898]
[1758505275576,0.02002221,114820.0,114810.0,1.09691898]
[1758505275777,0.02042221,114820.0,114810.0,1.09691898]
[1758505276487,0.02142221,114820.0,114810.0,1.09691898]
[1758505277079,0.02142221,114820.0,114810.0,0.88055912]
[1758505277277,0.04279345,114820.0,114810.0,0.88055912]
[1758505277473,0.06405345,114820.0,114810.0,0.88055912]
[1758505277678,0.06405345,114820.0,114810.0,1.68411912]
[1758505278579,0.06405345,114820.0,114810.0,0.88055912]
[1758505278783,0.06405345,114820.0,114810.0,1.68411912]
[1758505279184,0.06405345,114820.0,114810.0,0.88055912]
[1758505279387,0.08725258,114820.0,114810.0,1.10691926]
[1758505280389,0.08725258,114820.0,114810.0,1.32327912]
[1758505280888,0.08725258,114820.0,114810.0,1.10691926]
[1758505281684,0.44805258,114820.0,114810.0,1.10687926]
[1758505282786,0.44805258,114820.0,114810.0,0.8905194]
[1758505282982,0.91441244,114820.0,114810.0,0.8905194]
[1758505283188,0.69805258,114820.0,114810.0,1.10687926]
[1758505283389,0.91441244,114820.0,114810.0,1.10687926]
[1758505283896,0.91441244,114820.0,114810.0,1.10687916]
[1758505284282,0.94574095,114820.0,114810.0,1.10687916]
[1758505285084,0.94574095,114820.0,114810.0,1.01983986]
[1758505285285,0.91441244,114820.0,114810.0,1.01983986]
[1758505285895,0.03521,114810.0,114800.0,0.30340556]
[1758505286080,0.63556899,114810.0,114800.0,1.10684556]
[1758505287090,0.9178975,114810.0,114800.0,0.80344]
[1758505287392,0.88656899,114810.0,114800.0,1.10680676]
[1758505287583,0.9178975,114810.0,114800.0,1.10680676]
[1758505287785,0.9178975,114810.0,114800.0,0.0870469]
[1758505287985,0.9178975,114810.0,114800.0,0.30340676]
[1758505288181,0.88656899,114810.0,114800.0,0.21635986]
[1758505288994,0.88656899,114810.0,114790.0,0.8908501]
[1758505289196,0.63656899,114810.0,114800.0,0.21635986]
[1758505289487,0.03521,114800.0,114790.0,0.8908501]
[1758505289792,0.41920913,114800.0,114790.0,1.10720996]
[1758505290192,0.41920913,114800.0,114790.0,1.10920996]
[1758505291789,0.41920913,114800.0,114790.0,0.8928501]
[1758505292095,0.41920913,114800.0,114790.0,1.10920996]
[1758505292489,0.05840913,114800.0,114790.0,1.10920996]
[1758505292993,0.41920913,114800.0,114790.0,1.10920996]
[1758505293694,0.05840913,114800.0,114790.0,1.10920996]
[1758505294490,0.41920913,114800.0,114790.0,1.10920996]
[1758505294690,0.41920913,114800.0,114790.0,0.8928501]
[1758505294893,0.41920913,114800.0,114790.0,1.10920996]
[1758505295096,0.41909401,114800.0,114790.0,1.10920996]
[1758505295889,0.03668401,114800.0,114790.0,1.32556982]
[1758505296795,0.02308401,114800.0,114790.0,1.68636982]
[1758505297001,0.03668401,114800.0,114790.0,1.68636982]
[1758505297392,0.39748401,114800.0,114790.0,1.10920996]
[1758505297692,0.41909401,114800.0,114790.0,1.10920996]
[1758505302304,0.39601,114800.0,114790.0,1.10920996]
[1758505302499,0.39601,114800.0,114790.0,0.30580996]
[1758505302700,0.41908747,114800.0,114790.0,1.10920996]
[1758505302902,0.41908738,114800.0,114790.0,1.10916996]
[1758505303097,0.39601,114800.0,114790.0,1.10916996]
[1758505309197,0.39601,114800.0,114790.0,1.32552982]
[1758505309605,0.3744,114800.0,114790.0,1.32552982]
[1758505309805,0.0136,114800.0,114790.0,1.32552982]